[Event "Titled Tuesday Blitz May 11 2021"]
[White "Jobava, Baadur"]
[Black "Manukyan, Sargis A."]
[WhiteFideId "13601520"]
[BlackFideId "13303970"]
[WhiteElo "2748"]
[BlackElo "2187"]
[Result "1-0"]
[Round "01"]
[TimeControl "180+1"]
[Date "2021.05.11"]
[WhiteClock "0:01:13"]
[BlackClock "0:00:28"]

1. e4 {[%clk 0:02:58]}  c5 {[%clk 0:02:59]} 2. d4 {[%clk 0:02:57]}  cxd4 {[%clk 0:02:58]} 3. c3 {[%clk 0:02:58]}  d3 {[%clk 0:02:59]} 4. Bxd3 {[%clk 0:02:57]}  d6 {[%clk 0:03:00]} 5. f4 {[%clk 0:02:58]}  Nf6 {[%clk 0:03:00]} 6. Nf3 {[%clk 0:02:58]}  Nc6 {[%clk 0:03:00]} 7. O-O {[%clk 0:02:59]}  g6 {[%clk 0:03:01]} 8. Kh1 {[%clk 0:02:59]}  Bg7 {[%clk 0:03:01]} 9. Be3 {[%clk 0:03:00]}  O-O {[%clk 0:03:02]} 10. Nbd2 {[%clk 0:03:00]}  d5 {[%clk 0:02:59]} 11. e5 {[%clk 0:02:56]}  Ng4 {[%clk 0:02:58]} 12. Bg1 {[%clk 0:02:56]}  h5 {[%clk 0:02:57]} 13. Qe2 {[%clk 0:02:54]}  Nh6 {[%clk 0:02:54]} 14. Rad1 {[%clk 0:02:52]}  Bf5 {[%clk 0:02:54]} 15. Nb3 {[%clk 0:02:48]}  e6 {[%clk 0:02:41]} 16. c4 {[%clk 0:02:44]}  Ne7 {[%clk 0:02:28]} 17. c5 {[%clk 0:02:29]}  Bxd3 {[%clk 0:02:24]} 18. Rxd3 {[%clk 0:02:28]}  Nhf5 {[%clk 0:02:25]} 19. Rc1 {[%clk 0:02:23]}  Nc6 {[%clk 0:02:24]} 20. a3 {[%clk 0:02:21]}  Qe7 {[%clk 0:02:19]} 21. Nbd4 {[%clk 0:02:18]}  Nfxd4 {[%clk 0:02:16]} 22. Nxd4 {[%clk 0:02:19]}  Nxd4 {[%clk 0:02:14]} 23. Bxd4 {[%clk 0:02:20]}  Rfc8 {[%clk 0:02:14]} 24. b4 {[%clk 0:02:19]}  b6 {[%clk 0:02:05]} 25. c6 {[%clk 0:02:15]}  b5 {[%clk 0:02:05]} 26. Rdc3 {[%clk 0:02:12]}  a6 {[%clk 0:02:04]} 27. c7 {[%clk 0:02:10]}  Qd7 {[%clk 0:01:58]} 28. Rc6 {[%clk 0:02:02]}  Bf8 {[%clk 0:01:56]} 29. h3 {[%clk 0:01:56]}  Be7 {[%clk 0:01:55]} 30. Kh2 {[%clk 0:01:55]}  Kg7 {[%clk 0:01:49]} 31. f5 {[%clk 0:01:48]}  gxf5 {[%clk 0:01:43]} 32. Qxh5 {[%clk 0:01:48]}  Rh8 {[%clk 0:01:40]} 33. Qxf5 {[%clk 0:01:44]}  Rh6 {[%clk 0:01:10]} 34. c8=Q {[%clk 0:01:32]}  Rxc8 {[%clk 0:01:09]} 35. Rxc8 {[%clk 0:01:31]}  Rg6 {[%clk 0:00:46]} 36. Qh5 {[%clk 0:01:26]}  Bd8 {[%clk 0:00:34]} 37. Bb6 {[%clk 0:01:15]}  Rh6 {[%clk 0:00:28]} 38. Rxd8 {[%clk 0:01:13]} 1-0


[Site "https://www.chess.com"]

[Event "Titled Tuesday Blitz May 11 2021"]
[White "Kamsky, Gata"]
[Black "Shtyka, Sergey"]
[WhiteFideId "2000024"]
[BlackFideId "4138465"]
[WhiteElo "2644"]
[BlackElo "2102"]
[Result "1-0"]
[Round "01"]
[TimeControl "180+1"]
[Date "2021.05.11"]
[WhiteClock "0:02:14"]
[BlackClock "0:00:21"]

1. e4 {[%clk 0:03:00]}  c5 {[%clk 0:02:58]} 2. Nf3 {[%clk 0:03:00]}  Nc6 {[%clk 0:02:58]} 3. d4 {[%clk 0:02:59]}  cxd4 {[%clk 0:02:59]} 4. Nxd4 {[%clk 0:02:59]}  Nf6 {[%clk 0:02:59]} 5. Nc3 {[%clk 0:02:59]}  e5 {[%clk 0:02:58]} 6. Ndb5 {[%clk 0:02:59]}  h6 {[%clk 0:02:58]} 7. Nd6+ {[%clk 0:02:57]}  Bxd6 {[%clk 0:02:58]} 8. Qxd6 {[%clk 0:02:57]}  Qe7 {[%clk 0:02:58]} 9. Qxe7+ {[%clk 0:02:57]}  Kxe7 {[%clk 0:02:59]} 10. b3 {[%clk 0:02:55]}  d6 {[%clk 0:02:59]} 11. a4 {[%clk 0:02:52]}  Be6 {[%clk 0:02:55]} 12. Ba3 {[%clk 0:02:52]}  Rhd8 {[%clk 0:02:53]} 13. O-O-O {[%clk 0:02:50]}  a6 {[%clk 0:02:50]} 14. f3 {[%clk 0:02:48]}  Nd4 {[%clk 0:02:41]} 15. Ne2 {[%clk 0:02:45]}  Nxb3+ {[%clk 0:02:03]} 16. cxb3 {[%clk 0:02:43]}  Bxb3 {[%clk 0:02:04]} 17. Rd2 {[%clk 0:02:34]}  Rac8+ {[%clk 0:02:01]} 18. Kb2 {[%clk 0:02:33]}  Bxa4 {[%clk 0:02:01]} 19. Nc3 {[%clk 0:02:33]}  Bc6 {[%clk 0:01:59]} 20. Be2 {[%clk 0:02:32]}  b5 {[%clk 0:01:32]} 21. Rhd1 {[%clk 0:02:30]}  Ne8 {[%clk 0:01:30]} 22. Bb4 {[%clk 0:02:28]}  Rd7 {[%clk 0:01:29]} 23. f4 {[%clk 0:02:25]}  f5 {[%clk 0:01:10]} 24. fxe5 {[%clk 0:02:23]}  Ke6 {[%clk 0:00:44]} 25. exd6 {[%clk 0:02:20]}  Nf6 {[%clk 0:00:35]} 26. exf5+ {[%clk 0:02:18]}  Kxf5 {[%clk 0:00:35]} 27. Bd3+ {[%clk 0:02:17]}  Kg5 {[%clk 0:00:31]} 28. Rf1 {[%clk 0:02:15]}  g6 {[%clk 0:00:21]} 29. h4+ {[%clk 0:02:14]} 1-0


[Site "https://www.chess.com"]

[Event "Titled Tuesday Blitz May 11 2021"]
[White "Keymer, Vincent"]
[Black "Elgersma, Onno"]
[WhiteFideId "12940690"]
[BlackFideId "1053531"]
[WhiteElo "2474"]
[BlackElo "2456"]
[Result "1-0"]
[Round "01"]
[TimeControl "180+1"]
[Date "2021.05.11"]
[WhiteClock "0:00:58"]
[BlackClock "0:00:03"]

1. Nf3 {[%clk 0:03:00]}  d5 {[%clk 0:02:59]} 2. e3 {[%clk 0:03:00]}  Nf6 {[%clk 0:02:59]} 3. c4 {[%clk 0:03:00]}  e6 {[%clk 0:02:59]} 4. Nc3 {[%clk 0:03:01]}  c5 {[%clk 0:02:57]} 5. cxd5 {[%clk 0:03:01]}  exd5 {[%clk 0:02:58]} 6. d4 {[%clk 0:03:01]}  Nc6 {[%clk 0:02:58]} 7. Bb5 {[%clk 0:03:02]}  Bd6 {[%clk 0:02:58]} 8. dxc5 {[%clk 0:03:02]}  Bxc5 {[%clk 0:02:59]} 9. O-O {[%clk 0:03:02]}  O-O {[%clk 0:02:59]} 10. b3 {[%clk 0:03:03]}  Bg4 {[%clk 0:02:58]} 11. Bb2 {[%clk 0:03:01]}  Re8 {[%clk 0:02:58]} 12. Rc1 {[%clk 0:02:59]}  Bd6 {[%clk 0:02:54]} 13. h3 {[%clk 0:02:57]}  Bh5 {[%clk 0:02:53]} 14. Ne2 {[%clk 0:02:51]}  Ne4 {[%clk 0:02:29]} 15. Ned4 {[%clk 0:02:11]}  Qf6 {[%clk 0:01:31]} 16. Bxc6 {[%clk 0:02:04]}  bxc6 {[%clk 0:01:26]} 17. Rxc6 {[%clk 0:02:05]}  Rac8 {[%clk 0:01:17]} 18. Rxc8 {[%clk 0:01:42]}  Rxc8 {[%clk 0:01:18]} 19. Qe2 {[%clk 0:01:42]}  Bxf3 {[%clk 0:00:38]} 20. Nxf3 {[%clk 0:01:30]}  Qg6 {[%clk 0:00:38]} 21. Rd1 {[%clk 0:01:26]}  Rc5 {[%clk 0:00:14]} 22. Bd4 {[%clk 0:01:22]}  Rc7 {[%clk 0:00:12]} 23. Bb2 {[%clk 0:01:16]}  Rc5 {[%clk 0:00:09]} 24. b4 {[%clk 0:01:16]}  Rc6 {[%clk 0:00:09]} 25. Rxd5 {[%clk 0:01:11]}  Qe6 {[%clk 0:00:08]} 26. Qd3 {[%clk 0:01:06]}  Bxb4 {[%clk 0:00:08]} 27. Rd8+ {[%clk 0:01:05]}  Bf8 {[%clk 0:00:08]} 28. Nd4 {[%clk 0:01:03]}  Qf6 {[%clk 0:00:04]} 29. Rxf8+ {[%clk 0:01:01]}  Kxf8 {[%clk 0:00:04]} 30. Qxe4 {[%clk 0:01:02]}  Rc8 {[%clk 0:00:02]} 31. Qb7 {[%clk 0:00:58]}  Kg8 {[%clk 0:00:03]} 32. Qxc8+ {[%clk 0:00:58]} 1-0


[Site "https://www.chess.com"]

[Event "Titled Tuesday Blitz May 11 2021"]
[White "Kobalia, Mikhail"]
[Black "Colbow, Collin"]
[WhiteFideId "4119150"]
[BlackFideId "16201132"]
[WhiteElo "2569"]
[BlackElo "2137"]
[Result "1-0"]
[Round "01"]
[TimeControl "180+1"]
[Date "2021.05.11"]
[WhiteClock "0:00:56"]
[BlackClock "0:00:03"]

1. e4 {[%clk 0:02:59]}  c5 {[%clk 0:02:35]} 2. Nf3 {[%clk 0:02:57]}  d6 {[%clk 0:02:35]} 3. d4 {[%clk 0:02:55]}  cxd4 {[%clk 0:02:36]} 4. Qxd4 {[%clk 0:02:55]}  Nc6 {[%clk 0:02:35]} 5. Qe3 {[%clk 0:02:55]}  Nf6 {[%clk 0:02:35]} 6. Be2 {[%clk 0:02:56]}  e5 {[%clk 0:02:35]} 7. O-O {[%clk 0:02:55]}  Be7 {[%clk 0:02:35]} 8. c4 {[%clk 0:02:53]}  O-O {[%clk 0:02:35]} 9. Nc3 {[%clk 0:02:53]}  Be6 {[%clk 0:02:33]} 10. h3 {[%clk 0:02:49]}  h6 {[%clk 0:02:32]} 11. Nd5 {[%clk 0:02:46]}  Nb8 {[%clk 0:02:05]} 12. Bd2 {[%clk 0:02:41]}  Nxd5 {[%clk 0:02:04]} 13. cxd5 {[%clk 0:02:39]}  Bc8 {[%clk 0:02:03]} 14. Bd3 {[%clk 0:02:38]}  Nd7 {[%clk 0:02:02]} 15. Rac1 {[%clk 0:02:36]}  Nc5 {[%clk 0:02:00]} 16. Bb1 {[%clk 0:02:34]}  Bd7 {[%clk 0:01:58]} 17. b4 {[%clk 0:02:33]}  Na4 {[%clk 0:01:58]} 18. Qb3 {[%clk 0:02:30]}  a5 {[%clk 0:01:51]} 19. bxa5 {[%clk 0:02:27]}  Nc5 {[%clk 0:01:51]} 20. Qb2 {[%clk 0:02:17]}  Rc8 {[%clk 0:01:36]} 21. Rfe1 {[%clk 0:02:14]}  f5 {[%clk 0:01:30]} 22. exf5 {[%clk 0:02:08]}  Bxf5 {[%clk 0:01:31]} 23. Bxf5 {[%clk 0:02:07]}  Rxf5 {[%clk 0:01:32]} 24. Re3 {[%clk 0:02:04]}  Qd7 {[%clk 0:01:28]} 25. Bb4 {[%clk 0:02:02]}  e4 {[%clk 0:01:13]} 26. Nd2 {[%clk 0:01:17]}  Nd3 {[%clk 0:01:12]} 27. Rxc8+ {[%clk 0:01:16]}  Qxc8 {[%clk 0:01:12]} 28. Qc3 {[%clk 0:01:15]}  Qxc3 {[%clk 0:01:02]} 29. Bxc3 {[%clk 0:01:16]}  Nxf2 {[%clk 0:00:34]} 30. Nxe4 {[%clk 0:01:09]}  Nxe4 {[%clk 0:00:13]} 31. Rxe4 {[%clk 0:01:10]}  Kf7 {[%clk 0:00:04]} 32. Rb4 {[%clk 0:01:02]}  Rxd5 {[%clk 0:00:04]} 33. Rxb7 {[%clk 0:01:02]}  Rd1+ {[%clk 0:00:01]} 34. Kh2 {[%clk 0:01:00]}  Ke6 {[%clk 0:00:01]} 35. a6 {[%clk 0:00:58]}  d5 {[%clk 0:00:02]} 36. Rxe7+ {[%clk 0:00:56]}  Kxe7 {[%clk 0:00:03]} 37. a7 {[%clk 0:00:56]} 1-0


[Site "https://www.chess.com"]

[Event "Titled Tuesday Blitz May 11 2021"]
[White "Kovacsy, Barnabas"]
[Black "Oparin, Grigoriy"]
[WhiteFideId "769290"]
[BlackFideId "24125890"]
[WhiteElo "1938"]
[BlackElo "2628"]
[Result "0-1"]
[Round "01"]
[TimeControl "180+1"]
[Date "2021.05.11"]
[WhiteClock "0:02:01"]
[BlackClock "0:02:27"]

1. e4 {[%clk 0:03:00]}  d6 {[%clk 0:02:59]} 2. d4 {[%clk 0:03:00]}  g6 {[%clk 0:03:00]} 3. Nc3 {[%clk 0:03:00]}  Bg7 {[%clk 0:03:00]} 4. Nf3 {[%clk 0:03:00]}  a6 {[%clk 0:03:01]} 5. Be2 {[%clk 0:02:58]}  b5 {[%clk 0:03:01]} 6. a3 {[%clk 0:02:59]}  Bb7 {[%clk 0:03:01]} 7. O-O {[%clk 0:02:58]}  Nd7 {[%clk 0:03:00]} 8. Bg5 {[%clk 0:02:57]}  h6 {[%clk 0:03:00]} 9. Bh4 {[%clk 0:02:57]}  g5 {[%clk 0:02:56]} 10. Bg3 {[%clk 0:02:57]}  Ngf6 {[%clk 0:02:56]} 11. e5 {[%clk 0:02:57]}  Nh5 {[%clk 0:02:55]} 12. Qd3 {[%clk 0:02:50]}  Nxg3 {[%clk 0:02:52]} 13. hxg3 {[%clk 0:02:49]}  dxe5 {[%clk 0:02:53]} 14. dxe5 {[%clk 0:02:47]}  Nxe5 {[%clk 0:02:54]} 15. Nxe5 {[%clk 0:02:47]}  Bxe5 {[%clk 0:02:54]} 16. Qe3 {[%clk 0:02:48]}  Qd4 {[%clk 0:02:55]} 17. Qxd4 {[%clk 0:02:43]}  Bxd4 {[%clk 0:02:55]} 18. Rad1 {[%clk 0:02:42]}  c5 {[%clk 0:02:50]} 19. Bf3 {[%clk 0:02:37]}  Bxf3 {[%clk 0:02:50]} 20. gxf3 {[%clk 0:02:37]}  Rd8 {[%clk 0:02:49]} 21. Rd3 {[%clk 0:02:33]}  e6 {[%clk 0:02:41]} 22. Rfd1 {[%clk 0:02:33]}  Ke7 {[%clk 0:02:41]} 23. Kf1 {[%clk 0:02:28]}  h5 {[%clk 0:02:40]} 24. Ke2 {[%clk 0:02:27]}  h4 {[%clk 0:02:40]} 25. gxh4 {[%clk 0:02:27]}  gxh4 {[%clk 0:02:41]} 26. f4 {[%clk 0:02:27]}  h3 {[%clk 0:02:41]} 27. Rh1 {[%clk 0:02:27]}  Bxc3 {[%clk 0:02:40]} 28. Rxc3 {[%clk 0:02:25]}  h2 {[%clk 0:02:39]} 29. Rxc5 {[%clk 0:02:22]}  Kf6 {[%clk 0:02:38]} 30. Rg5 {[%clk 0:02:19]}  Rc8 {[%clk 0:02:34]} 31. c3 {[%clk 0:02:18]}  Rh4 {[%clk 0:02:34]} 32. Rg2 {[%clk 0:02:17]}  Rch8 {[%clk 0:02:34]} 33. Kf3 {[%clk 0:02:16]}  Rh3+ {[%clk 0:02:29]} 34. Rg3 {[%clk 0:02:14]}  Kf5 {[%clk 0:02:28]} 35. Rxh3 {[%clk 0:01:59]}  Rxh3+ {[%clk 0:02:29]} 36. Kg2 {[%clk 0:02:00]}  Rh4 {[%clk 0:02:29]} 37. Rxh2 {[%clk 0:02:00]}  Rxh2+ {[%clk 0:02:28]} 38. Kxh2 {[%clk 0:02:00]}  Kxf4 {[%clk 0:02:28]} 39. Kg2 {[%clk 0:02:01]}  Ke4 {[%clk 0:02:27]} 40. Kf1 {[%clk 0:02:01]}  Kd3 {[%clk 0:02:27]} 0-1


[Site "https://www.chess.com"]

[Event "Titled Tuesday Blitz May 11 2021"]
[White "Livaic, Leon"]
[Black "Niraj, Saripalli"]
[WhiteFideId "14531534"]
[BlackFideId "5045657"]
[WhiteElo "2540"]
[BlackElo "2113"]
[Result "1-0"]
[Round "01"]
[TimeControl "180+1"]
[Date "2021.05.11"]
[WhiteClock "0:02:16"]
[BlackClock "0:00:20"]

1. e4 {[%clk 0:03:00]}  e5 {[%clk 0:03:00]} 2. Nf3 {[%clk 0:03:00]}  Nc6 {[%clk 0:03:00]} 3. Bc4 {[%clk 0:03:00]}  Nf6 {[%clk 0:02:59]} 4. d3 {[%clk 0:03:00]}  h6 {[%clk 0:02:59]} 5. c3 {[%clk 0:02:59]}  d6 {[%clk 0:03:00]} 6. h3 {[%clk 0:02:58]}  g5 {[%clk 0:03:00]} 7. Be3 {[%clk 0:02:54]}  Bg7 {[%clk 0:02:59]} 8. Nbd2 {[%clk 0:02:54]}  Qe7 {[%clk 0:02:14]} 9. b4 {[%clk 0:02:48]}  Be6 {[%clk 0:02:01]} 10. Qb3 {[%clk 0:02:48]}  O-O {[%clk 0:01:54]} 11. g4 {[%clk 0:02:36]}  Rfd8 {[%clk 0:01:31]} 12. h4 {[%clk 0:02:36]}  Nxg4 {[%clk 0:01:28]} 13. hxg5 {[%clk 0:02:34]}  Nxe3 {[%clk 0:01:29]} 14. fxe3 {[%clk 0:02:34]}  hxg5 {[%clk 0:01:29]} 15. Bxe6 {[%clk 0:02:32]}  fxe6 {[%clk 0:01:21]} 16. Ke2 {[%clk 0:02:28]}  g4 {[%clk 0:01:19]} 17. Nh4 {[%clk 0:02:27]}  d5 {[%clk 0:01:03]} 18. Rag1 {[%clk 0:02:25]}  dxe4 {[%clk 0:00:39]} 19. Nxe4 {[%clk 0:02:25]}  Kf7 {[%clk 0:00:25]} 20. Rxg4 {[%clk 0:02:25]}  Rg8 {[%clk 0:00:24]} 21. Nf5 {[%clk 0:02:16]}  Qd7 {[%clk 0:00:20]} 22. Rh7 {[%clk 0:02:16]} 1-0


[Site "https://www.chess.com"]

[Event "Titled Tuesday Blitz May 11 2021"]
[White "Ljukin, Sergei"]
[Black "Gabrielian, Artur"]
[WhiteFideId "14102200"]
[BlackFideId "4131002"]
[WhiteElo "2287"]
[BlackElo "2539"]
[Result "1-0"]
[Round "01"]
[TimeControl "180+1"]
[Date "2021.05.11"]
[WhiteClock "0:00:03"]
[BlackClock "0:00:05"]

1. e4 {[%clk 0:03:00]}  e5 {[%clk 0:02:59]} 2. Nf3 {[%clk 0:03:00]}  Nc6 {[%clk 0:02:59]} 3. Bb5 {[%clk 0:02:58]}  g6 {[%clk 0:02:58]} 4. d4 {[%clk 0:02:57]}  exd4 {[%clk 0:02:58]} 5. Nxd4 {[%clk 0:02:58]}  Bg7 {[%clk 0:02:57]} 6. Be3 {[%clk 0:02:57]}  Nf6 {[%clk 0:02:56]} 7. Nc3 {[%clk 0:02:56]}  O-O {[%clk 0:02:55]} 8. O-O {[%clk 0:02:54]}  Re8 {[%clk 0:02:55]} 9. f3 {[%clk 0:02:52]}  a6 {[%clk 0:02:53]} 10. Ba4 {[%clk 0:02:45]}  b5 {[%clk 0:02:41]} 11. Bb3 {[%clk 0:02:44]}  Na5 {[%clk 0:02:38]} 12. Qd2 {[%clk 0:02:39]}  Nxb3 {[%clk 0:02:37]} 13. axb3 {[%clk 0:02:38]}  Bb7 {[%clk 0:02:36]} 14. Bg5 {[%clk 0:02:33]}  c5 {[%clk 0:02:25]} 15. Nde2 {[%clk 0:02:26]}  Qb6 {[%clk 0:02:25]} 16. Nf4 {[%clk 0:02:15]}  c4+ {[%clk 0:02:11]} 17. Kh1 {[%clk 0:02:14]}  cxb3 {[%clk 0:02:12]} 18. cxb3 {[%clk 0:02:14]}  Rac8 {[%clk 0:01:59]} 19. Rad1 {[%clk 0:01:54]}  h6 {[%clk 0:01:54]} 20. Bxf6 {[%clk 0:01:51]}  Qxf6 {[%clk 0:01:52]} 21. Qxd7 {[%clk 0:01:32]}  Bc6 {[%clk 0:01:16]} 22. Qd2 {[%clk 0:01:03]}  Red8 {[%clk 0:01:13]} 23. Ncd5 {[%clk 0:00:53]}  Qe5 {[%clk 0:01:08]} 24. b4 {[%clk 0:00:23]}  Kh7 {[%clk 0:01:06]} 25. b3 {[%clk 0:00:14]}  Bb7 {[%clk 0:01:06]} 26. Qf2 {[%clk 0:00:12]}  f5 {[%clk 0:01:02]} 27. Nd3 {[%clk 0:00:11]}  Qd4 {[%clk 0:00:45]} 28. Nc5 {[%clk 0:00:10]}  Qxf2 {[%clk 0:00:45]} 29. Rxf2 {[%clk 0:00:10]}  fxe4 {[%clk 0:00:41]} 30. fxe4 {[%clk 0:00:10]}  Bc6 {[%clk 0:00:34]} 31. Rf7 {[%clk 0:00:09]}  a5 {[%clk 0:00:31]} 32. Ne6 {[%clk 0:00:06]}  Bxd5 {[%clk 0:00:25]} 33. Rxg7+ {[%clk 0:00:05]}  Kh8 {[%clk 0:00:26]} 34. exd5 {[%clk 0:00:05]}  Rxd5 {[%clk 0:00:26]} 35. Rg1 {[%clk 0:00:03]}  Re5 {[%clk 0:00:19]} 36. Rxg6 {[%clk 0:00:03]}  Kh7 {[%clk 0:00:18]} 37. Rf6 {[%clk 0:00:03]}  Rc6 {[%clk 0:00:18]} 38. Rf7+ {[%clk 0:00:01]}  Kg6 {[%clk 0:00:18]} 39. Rg7+ {[%clk 0:00:01]}  Kf6 {[%clk 0:00:18]} 40. bxa5 {[%clk 0:00:01]}  Kxe6 {[%clk 0:00:17]} 41. Rb7 {[%clk 0:00:02]}  Re2 {[%clk 0:00:17]} 42. h3 {[%clk 0:00:02]}  Ra2 {[%clk 0:00:16]} 43. Rxb5 {[%clk 0:00:02]}  Rcc2 {[%clk 0:00:16]} 44. b4 {[%clk 0:00:03]}  Kd6 {[%clk 0:00:15]} 45. Rb6+ {[%clk 0:00:04]}  Kd5 {[%clk 0:00:15]} 46. a6 {[%clk 0:00:04]}  Ke4 {[%clk 0:00:16]} 47. b5 {[%clk 0:00:04]}  Kd5 {[%clk 0:00:16]} 48. Rb7 {[%clk 0:00:04]}  Kd6 {[%clk 0:00:16]} 49. a7 {[%clk 0:00:05]}  Rc8 {[%clk 0:00:14]} 50. b6 {[%clk 0:00:05]}  Rd8 {[%clk 0:00:05]} 51. Rb8 {[%clk 0:00:05]}  Kd7 {[%clk 0:00:05]} 52. Rd1+ {[%clk 0:00:03]}  Ke7 {[%clk 0:00:05]} 53. Rbxd8 {[%clk 0:00:03]} 1-0


[Site "https://www.chess.com"]

[Event "Titled Tuesday Blitz May 11 2021"]
[White "Martinez Reyes, Pedro Ramon"]
[Black "Lintchevski, Daniil"]
[WhiteFideId "3901807"]
[BlackFideId "4171055"]
[WhiteElo "2392"]
[BlackElo "2505"]
[Result "0-1"]
[Round "01"]
[TimeControl "180+1"]
[Date "2021.05.11"]
[WhiteClock "0:00:01"]
[BlackClock "0:01:26"]

1. a3 {[%clk 0:02:58]}  g6 {[%clk 0:02:54]} 2. Nf3 {[%clk 0:02:57]}  Bg7 {[%clk 0:02:54]} 3. g3 {[%clk 0:02:57]}  c5 {[%clk 0:02:54]} 4. Bg2 {[%clk 0:02:57]}  Nc6 {[%clk 0:02:55]} 5. O-O {[%clk 0:02:57]}  d6 {[%clk 0:02:55]} 6. c3 {[%clk 0:02:56]}  e5 {[%clk 0:02:55]} 7. d3 {[%clk 0:02:56]}  Nge7 {[%clk 0:02:54]} 8. e4 {[%clk 0:02:56]}  O-O {[%clk 0:02:55]} 9. Be3 {[%clk 0:02:56]}  h6 {[%clk 0:02:53]} 10. Qd2 {[%clk 0:02:56]}  Kh7 {[%clk 0:02:53]} 11. c4 {[%clk 0:02:57]}  f5 {[%clk 0:02:53]} 12. Nc3 {[%clk 0:02:56]}  Nd4 {[%clk 0:02:47]} 13. Bxd4 {[%clk 0:02:55]}  cxd4 {[%clk 0:02:42]} 14. Nd5 {[%clk 0:02:55]}  fxe4 {[%clk 0:02:41]} 15. dxe4 {[%clk 0:02:54]}  Nxd5 {[%clk 0:02:39]} 16. cxd5 {[%clk 0:02:54]}  Bd7 {[%clk 0:02:25]} 17. Rfc1 {[%clk 0:02:43]}  Qb6 {[%clk 0:02:24]} 18. b4 {[%clk 0:02:43]}  Rac8 {[%clk 0:02:21]} 19. h4 {[%clk 0:02:35]}  Bg4 {[%clk 0:02:17]} 20. Ne1 {[%clk 0:02:34]}  Rc3 {[%clk 0:02:17]} 21. Nd3 {[%clk 0:02:28]}  Rfc8 {[%clk 0:02:14]} 22. f3 {[%clk 0:01:54]}  Bd7 {[%clk 0:02:12]} 23. Kh2 {[%clk 0:01:54]}  Bb5 {[%clk 0:02:10]} 24. Rxc3 {[%clk 0:01:47]}  dxc3 {[%clk 0:02:10]} 25. Qc2 {[%clk 0:01:45]}  Qd4 {[%clk 0:01:58]} 26. Bf1 {[%clk 0:01:42]}  h5 {[%clk 0:01:49]} 27. a4 {[%clk 0:01:20]}  Bxd3 {[%clk 0:01:46]} 28. Bxd3 {[%clk 0:01:20]}  Bh6 {[%clk 0:01:40]} 29. b5 {[%clk 0:01:08]}  Bd2 {[%clk 0:01:40]} 30. Kg2 {[%clk 0:00:58]}  Kg7 {[%clk 0:01:34]} 31. Rf1 {[%clk 0:00:09]}  Rf8 {[%clk 0:01:33]} 32. Rf2 {[%clk 0:00:07]}  b6 {[%clk 0:01:31]} 33. Re2 {[%clk 0:00:06]}  Rf7 {[%clk 0:01:31]} 34. Rf2 {[%clk 0:00:02]}  Qb4 {[%clk 0:01:30]} 35. Re2 {[%clk 0:00:02]}  Qc5 {[%clk 0:01:27]} 36. Rf2 {[%clk 0:00:01]}  Qd4 {[%clk 0:01:27]} 37. Re2 {[%clk 0:00:02]}  g5 {[%clk 0:01:25]} 38. hxg5 {[%clk 0:00:01]}  Bxg5 {[%clk 0:01:26]} 0-1


[Site "https://www.chess.com"]

[Event "Titled Tuesday Blitz May 11 2021"]
[White "Miszler, Levente"]
[Black "Bologan, Victor"]
[WhiteFideId "763276"]
[BlackFideId "13900048"]
[WhiteElo "1967"]
[BlackElo "2511"]
[Result "1-0"]
[Round "01"]
[TimeControl "180+1"]
[Date "2021.05.11"]
[WhiteClock "0:01:11"]
[BlackClock "0:00:42"]

1. Nf3 {[%clk 0:03:00]}  d6 {[%clk 0:02:59]} 2. c4 {[%clk 0:03:01]}  e5 {[%clk 0:02:58]} 3. Nc3 {[%clk 0:02:59]}  f5 {[%clk 0:02:58]} 4. d3 {[%clk 0:02:55]}  Nf6 {[%clk 0:02:57]} 5. g3 {[%clk 0:02:55]}  g6 {[%clk 0:02:57]} 6. Bg2 {[%clk 0:02:51]}  Bg7 {[%clk 0:02:57]} 7. O-O {[%clk 0:02:50]}  O-O {[%clk 0:02:58]} 8. Rb1 {[%clk 0:02:44]}  h6 {[%clk 0:02:57]} 9. b4 {[%clk 0:02:44]}  g5 {[%clk 0:02:57]} 10. a4 {[%clk 0:02:38]}  f4 {[%clk 0:02:56]} 11. Qb3 {[%clk 0:02:36]}  Kh8 {[%clk 0:02:54]} 12. Nd5 {[%clk 0:02:35]}  Nxd5 {[%clk 0:02:52]} 13. cxd5 {[%clk 0:02:36]}  Nd7 {[%clk 0:02:50]} 14. Ba3 {[%clk 0:02:34]}  Nf6 {[%clk 0:02:49]} 15. Rbc1 {[%clk 0:02:32]}  Bf5 {[%clk 0:02:44]} 16. Nd2 {[%clk 0:02:21]}  Qd7 {[%clk 0:02:38]} 17. Ne4 {[%clk 0:02:20]}  Nxe4 {[%clk 0:02:26]} 18. dxe4 {[%clk 0:02:21]}  Bg4 {[%clk 0:02:26]} 19. Rc2 {[%clk 0:02:19]}  Rac8 {[%clk 0:02:21]} 20. b5 {[%clk 0:02:18]}  Bh5 {[%clk 0:02:12]} 21. a5 {[%clk 0:02:14]}  g4 {[%clk 0:02:11]} 22. b6 {[%clk 0:02:07]}  axb6 {[%clk 0:02:09]} 23. axb6 {[%clk 0:02:08]}  f3 {[%clk 0:02:07]} 24. exf3 {[%clk 0:02:02]}  gxf3 {[%clk 0:02:06]} 25. Bh1 {[%clk 0:02:01]}  Rfd8 {[%clk 0:01:29]} 26. Rfc1 {[%clk 0:01:55]}  cxb6 {[%clk 0:01:26]} 27. Bxf3 {[%clk 0:01:50]}  Bxf3 {[%clk 0:01:24]} 28. Qxf3 {[%clk 0:01:51]}  Rxc2 {[%clk 0:01:22]} 29. Rxc2 {[%clk 0:01:52]}  Qa4 {[%clk 0:01:21]} 30. Rc7 {[%clk 0:01:45]}  Rf8 {[%clk 0:00:59]} 31. Qg4 {[%clk 0:01:41]}  Rg8 {[%clk 0:00:57]} 32. Bxd6 {[%clk 0:01:32]}  b5 {[%clk 0:00:56]} 33. Qg6 {[%clk 0:01:18]}  Qa1+ {[%clk 0:00:46]} 34. Kg2 {[%clk 0:01:17]}  b6 {[%clk 0:00:45]} 35. Bf8 {[%clk 0:01:11]}  Bxf8 {[%clk 0:00:42]} 36. Qh7# {[%clk 0:01:11]} 1-0


[Site "https://www.chess.com"]